bitfinex/quotes_SOLUSD_20250529
["timestamp","ask_amount","ask_price","bid_price","bid_amount"]
[1748496367995,155.22247934,172.12,172.08,7.92247934]
[1748496368918,155.22247934,172.12,172.07,24.46123716]
[1748496368919,18.3,172.11,172.1,26.5721282]
[1748496369097,147.3,172.12,172.1,7.92247934]
[1748496370332,147.3,172.12,172.1,18.64964886]
[1748496370536,147.3,172.12,172.08,7.92247934]
[1748496370703,155.22247934,172.12,172.08,18.64964886]
[1748496371210,155.22247934,172.12,172.06,26.5721282]
[1748496371211,7.92247934,172.11,172.06,26.5721282]
[1748496371389,18.3,172.1,172.06,26.5721282]
[1748496372292,18.3,172.1,172.07,7.92247934]
[1748496373703,18.3,172.1,172.08,18.64964886]
[1748496374031,18.3,172.1,172.08,7.92247934]
[1748496377219,18.3,172.09,172.08,7.92247934]
[1748496377717,18.3,172.09,172.08,13.73372992]
[1748496378819,18.3,172.09,172.08,7.92247934]
[1748496380820,18.3,172.09,172.08,13.73372992]
[1748496383217,147.3,172.12,172.08,13.73372992]
[1748496383514,147.3,172.12,172.09,7.92247934]
[1748496388126,18.3,172.11,172.07,7.92247934]
[1748496388904,18.3,172.11,172.08,7.92247934]
[1748496392030,18.3,172.1,172.08,7.92247934]
[1748496397726,18.3,172.1,172.08,13.73372428]
[1748496398045,18.3,172.09,172.08,26.5721282]
[1748496403944,183.88,172.12,172.08,26.5721282]
[1748496408552,183.88,172.12,172.08,32.38336967]
[1748496410022,183.88,172.12,172.08,18.64964886]
[1748496410219,183.88,172.12,172.08,26.5721282]
[1748496414424,183.88,172.12,172.08,18.64964886]
[1748496415932,183.88,172.12,172.08,26.5721282]
[1748496416132,183.88,172.12,172.09,7.92247934]
[1748496417532,183.88,172.12,172.09,13.73332981]
[1748496417858,183.88,172.12,172.1,7.92247934]
[1748496418155,147.3,172.12,172.1,7.92247934]
[1748496421560,18.3,172.11,172.1,7.92247934]
[1748496423282,26.22247934,172.11,172.02,6.0815]
[1748496423567,26.22247934,172.11,171.94,12.68557362]
[1748496423568,26.0,172.07,171.94,12.68557362]
[1748496423754,26.0,172.03,171.96,7.92247934]
[1748496424054,36.92,172.02,171.98,7.92247934]
[1748496424259,44.84247934,172.02,171.96,7.92247934]
[1748496424451,7.92247934,172.01,171.96,7.92247934]
[1748496425047,7.92247934,172.01,171.97,18.64964886]
[1748496425772,7.92247934,171.99,171.96,18.64964886]
[1748496426062,36.92,172.02,171.92,7.32132438]
[1748496426063,7.92247934,171.97,171.92,7.92247934]
[1748496426270,7.92247934,171.97,171.89,5.81767409]
[1748496426271,7.92247934,171.94,171.89,7.92247934]
[1748496426640,7.92247934,171.96,171.9,7.92247934]
[1748496426839,44.82247934,171.97,171.92,18.64964886]
[1748496427048,36.9,171.97,171.93,7.92247934]
[1748496427245,44.82247934,171.97,171.92,7.92247934]
[1748496429467,44.82247934,171.97,171.92,13.73910744]
[1748496430466,36.9,171.97,171.94,26.5721282]
[1748496431071,36.9,171.97,171.94,18.64964886]
[1748496431644,7.92247934,171.98,171.94,18.64964886]
[1748496433546,9.82,172.0,171.94,18.64964886]
[1748496433750,46.64,172.0,171.96,26.5721282]
[1748496433948,18.3,171.99,171.96,26.5721282]
[1748496434267,18.3,171.99,171.94,5.81592808]
[1748496434450,18.3,171.99,171.97,7.92247934]
[1748496434653,18.3,171.99,171.98,7.92247934]
[1748496434847,9.82,172.04,171.98,7.92247934]
[1748496435051,17.74247934,172.04,171.99,7.92247934]
[1748496435275,17.74247934,172.04,171.98,7.92247934]
[1748496435276,7.92247934,172.03,171.98,7.92247934]
[1748496435491,9.82,172.04,171.98,7.92247934]
[1748496435645,17.74247934,172.04,171.99,7.92247934]
[1748496435844,54.58247934,172.04,171.99,7.92247934]
[1748496436061,59.04610516,172.04,171.99,12.38610516]
[1748496436397,46.66,172.04,171.99,12.38610516]
[1748496436551,59.04610516,172.04,171.99,12.38610516]
[1748496436754,59.04610516,172.04,171.98,12.38610516]
[1748496436755,12.38610516,172.02,171.98,12.38610516]
[1748496438570,12.38610516,172.02,171.97,31.03575402]
[1748496439286,18.3,172.01,171.97,31.03575402]
[1748496443666,18.3,172.01,171.98,12.38610516]
[1748496444602,18.3,172.01,171.99,12.38610516]
[1748496444888,18.3,172.01,171.99,31.03575402]
[1748496445408,26.0,171.97,171.87,1.5695]
[1748496445567,26.0,171.93,171.83,6.2813]
[1748496445772,26.0,171.93,171.88,12.38610516]
[1748496446267,38.38610516,171.93,171.83,7.8508]
[1748496446468,26.0,171.93,171.89,18.64964886]
[1748496446663,26.0,171.93,171.88,18.64964886]
[1748496446894,26.0,171.93,171.88,31.03575402]
[1748496447089,12.38610516,171.92,171.84,18.64964886]
[1748496447270,12.38610516,171.92,171.88,18.64964886]
[1748496447472,12.38610516,171.92,171.84,18.933972]
[1748496447774,12.38610516,171.92,171.88,18.64964886]
[1748496448017,26.0,171.95,171.88,18.64964886]
[1748496448170,12.38610516,171.93,171.88,12.38610516]
[1748496448370,12.38610516,171.93,171.88,18.64964886]
[1748496449204,12.38610516,171.92,171.86,0.14216157]
[1748496449412,12.38610516,171.92,171.88,18.64964886]
[1748496450513,49.48,171.96,171.86,0.14216157]
[1748496450705,165.6,171.95,171.88,18.64964886]
[1748496450909,165.6,171.95,171.88,31.03575402]
[1748496451196,12.38610516,171.92,171.88,31.03575402]
[1748496451505,18.3,171.91,171.88,31.03575402]
[1748496451670,18.3,171.91,171.88,18.64964886]
[1748496452285,18.3,171.91,171.88,12.38610516]
[1748496452674,49.48,171.96,171.85,18.64964886]
[1748496453001,12.38610516,171.89,171.85,18.64964886]
[1748496453177,58.32359592,171.96,171.85,31.03575402]
[1748496453178,12.38610516,171.9,171.85,31.03575402]
[1748496453376,58.32359592,171.96,171.85,31.03575402]
[1748496453703,12.38610516,171.9,171.85,31.03575402]
[1748496455501,12.38610516,171.9,171.86,12.38610516]
[1748496457181,12.38610516,171.9,171.85,18.64964886]
[1748496457482,58.32359592,171.96,171.86,12.38610516]
[1748496457801,12.38610516,171.9,171.86,12.38610516]
[1748496457990,18.2,171.89,171.86,12.38610516]
[1748496460703,18.2,171.89,171.85,18.64964886]
[1748496461014,18.2,171.89,171.85,31.03575402]
[1748496462889,18.2,171.88,171.85,31.03575402]
[1748496463397,18.2,171.88,171.87,18.64964886]
[1748496466403,18.2,171.88,171.87,31.03575402]
[1748496468721,18.2,171.88,171.87,36.85410509]
[1748496470089,18.2,171.88,171.87,62.85410509]
[1748496472923,18.2,171.88,171.87,62.99626666]
[1748496473134,18.2,171.93,171.88,0.14216157]
[1748496473301,18.2,171.93,171.91,18.64964886]
[1748496473501,18.2,171.92,171.91,18.64964886]
[1748496473932,18.2,171.92,171.83,16.11846714]
[1748496474241,18.2,171.91,171.89,18.64964886]
[1748496477311,18.2,171.91,171.9,12.38610516]
[1748496482039,18.087538,171.91,171.9,12.38610516]
[1748496483627,11.26,171.94,171.91,18.64964886]
[1748496485417,155.23529889,171.95,171.92,7.93529889]
[1748496485418,147.3,171.95,171.92,7.93529889]
[1748496485626,18.2,171.94,171.93,7.93529889]
[1748496487916,18.2,171.94,171.93,12.39515985]
[1748496489638,147.3,171.95,171.93,12.39515985]
[1748496489843,147.3,172.01,171.95,18.64964886]
[1748496490143,147.3,172.01,172.0,12.39515985]
[1748496491632,147.3,172.01,172.0,36.85876219]
[1748496492117,147.3,172.01,172.0,31.04480871]
[1748496494222,185.54,172.07,172.01,18.64964886]
[1748496494423,185.54,172.07,172.03,12.39515985]
[1748496495124,147.3,172.07,172.03,12.39515985]
[1748496496322,49.14,172.09,172.05,12.39515985]
[1748496496830,61.53515985,172.09,172.04,12.39515985]
[1748496497036,61.51515985,172.09,172.04,12.39515985]
[1748496498548,61.47515985,172.09,172.04,12.39515985]
[1748496498745,12.39515985,172.07,172.02,12.39515985]
[1748496499331,49.06,172.09,172.0,18.64964886]
[1748496499332,12.39515985,172.06,172.0,18.64964886]
[1748496499527,49.06,172.09,171.98,18.933972]
[1748496499528,30.59515985,172.05,171.98,18.933972]
[1748496499735,30.59515985,172.05,172.0,12.39515985]
[1748496499949,68.71515985,172.05,172.0,12.39515985]
[1748496500348,12.39515985,172.04,171.98,18.64964886]
[1748496500545,12.39515985,172.03,171.98,12.39515985]
[1748496503756,12.39515985,172.03,171.99,12.39515985]
[1748496504454,18.2,172.02,171.99,12.39515985]
[1748496504643,18.2,172.01,172.0,12.39515985]
[1748496505250,18.2,172.01,171.97,0.14216157]
[1748496505554,18.2,172.01,172.0,12.39515985]
[1748496506530,18.2,172.01,171.99,12.39515985]
[1748496507867,18.2,172.01,172.0,12.39515985]
[1748496509166,18.2,172.01,172.0,31.04480871]
[1748496513581,18.2,172.01,172.0,37.00092376]
[1748496514071,18.2,172.01,172.0,37.14308533]
[1748496514779,30.59515985,172.08,172.01,18.79181043]
[1748496514976,18.2,172.07,172.03,12.39515985]
[1748496515607,18.2,172.06,172.03,12.39515985]
[1748496516184,18.2,172.05,172.03,12.39515985]
[1748496518476,18.2,172.05,172.04,12.39515985]
[1748496519375,18.2,172.05,172.04,31.04480871]
[1748496522172,158.24,172.09,172.04,31.04480871]
[1748496522367,158.24,172.09,172.05,12.39515985]
[1748496522563,18.2,172.08,172.05,12.39515985]
[1748496527991,18.2,172.07,172.05,12.39515985]
[1748496528380,18.2,172.07,172.04,18.64964886]
[1748496528585,18.2,172.07,172.05,12.39515985]
[1748496529789,18.2,172.07,172.04,18.64964886]
[1748496529986,18.2,172.07,172.05,12.39515985]
[1748496534002,18.2,172.06,172.05,12.39515985]
[1748496534588,18.2,172.06,172.04,18.64964886]
[1748496534889,18.2,172.06,172.05,12.39515985]
[1748496536905,18.2,172.06,172.04,31.04480871]
[1748496538203,18.2,172.06,171.97,1.6052]
[1748496538500,18.2,172.05,172.02,12.39515985]
[1748496538703,18.2,172.04,172.02,12.39515985]
[1748496539288,18.2,172.04,172.03,12.39515985]
[1748496540011,18.2,172.04,172.01,12.39515985]
[1748496540587,18.2,172.04,172.02,12.39515985]
[1748496542800,18.2,172.03,172.02,12.39515985]
[1748496543219,18.2,172.03,172.01,24.46323098]
[1748496543409,18.2,172.03,172.02,12.39515985]
[1748496543831,18.2,172.03,172.02,31.04480871]
[1748496545235,18.2,172.03,172.02,36.85808623]
[1748496547932,18.2,172.03,172.02,32.38591537]
[1748496548835,147.3,172.08,172.03,18.64964886]
[1748496549139,147.3,172.08,172.06,7.92298899]
[1748496549301,18.2,172.07,172.03,18.79181043]
[1748496549521,18.2,172.07,172.06,26.57263785]
[1748496550822,18.2,172.07,172.06,32.38456392]
[1748496551935,18.2,172.07,172.06,36.83460539]
[1748496553630,18.2,172.07,172.06,31.02267932]
[1748496554851,10.52,172.12,172.06,18.64964886]
[1748496555152,10.52,172.12,171.99,18.1872572]
[1748496555153,12.37303046,172.07,171.99,18.1872572]
[1748496555440,12.37303046,172.06,172.01,18.64964886]
[1748496555767,37.68,172.07,172.03,12.37303046]
[1748496557449,50.05303046,172.07,172.02,12.37303046]
[1748496558746,12.37303046,172.06,172.01,12.37303046]
[1748496559340,50.05303046,172.07,172.02,12.37303046]
[1748496560667,18.2,172.06,172.02,12.37303046]
[1748496561134,18.2,172.06,172.04,12.37303046]
[1748496564749,18.2,172.06,172.05,18.64964886]
[1748496564954,18.2,172.06,172.01,18.64964886]
[1748496565136,18.2,172.06,172.03,18.64964886]
[1748496565731,30.57303046,172.06,172.02,26.0]
[1748496565924,12.37303046,172.05,172.0,31.02267932]
[1748496566130,12.37303046,172.05,172.0,18.64964886]
[1748496566638,18.2,172.04,172.0,31.02267932]
[1748496568257,18.2,172.04,171.99,26.0]
[1748496568258,30.57303046,172.03,171.99,18.64964886]
[1748496568555,18.2,172.02,171.99,31.02267932]
[1748496568726,18.2,172.02,171.97,18.79181043]
[1748496568930,18.2,172.02,171.99,12.37303046]
[1748496570454,18.2,172.02,171.97,24.60675523]
[1748496570662,18.2,172.02,171.99,12.37303046]
[1748496572344,18.2,172.01,171.99,12.37303046]
[1748496572546,18.2,172.01,171.97,24.60675523]
[1748496572748,18.2,172.01,171.99,12.37303046]
[1748496573674,18.2,172.01,171.97,18.79181043]
[1748496573878,18.2,172.01,171.95,18.64964886]
[1748496574175,12.37303046,171.99,171.95,18.64964886]
[1748496574936,12.37303046,171.99,171.95,31.02267932]
[1748496575352,30.57303046,172.0,171.95,31.02267932]
[1748496575765,30.57303046,172.0,171.95,18.64964886]
[1748496576074,30.57303046,172.0,171.95,31.02267932]
[1748496576483,30.57303046,172.0,171.96,12.37303046]
[1748496576769,18.2,172.0,171.96,12.37303046]
[1748496577168,18.2,172.0,171.95,18.64964886]
[1748496577470,18.2,172.0,171.96,12.37303046]
[1748496578081,18.2,172.0,171.97,12.37303046]
[1748496578243,18.2,171.99,171.97,12.37303046]
[1748496578677,18.2,171.99,171.98,12.37303046]
[1748496578852,18.2,171.99,171.95,24.46529284]
[1748496579166,18.2,171.99,171.98,12.37303046]
[1748496579351,18.2,171.99,171.95,24.46529284]
[1748496579553,18.2,171.99,171.97,12.37303046]
[1748496582159,18.2,171.99,171.98,18.64964886]
[1748496582393,18.2,171.99,171.98,31.02267932]
[1748496583567,18.2,171.99,171.97,18.79181043]
[1748496583763,18.2,171.99,171.98,12.37303046]
[1748496589302,18.2,171.99,171.98,18.18766006]
[1748496589592,18.2,171.99,171.98,12.37303046]
[1748496591793,18.2,171.99,171.97,5.81489462]
[1748496592094,18.2,171.99,171.98,12.37303046]
[1748496592997,18.2,171.99,171.98,31.02267932]
[1748496593382,18.2,171.99,171.98,31.16484089]
[1748496593896,147.3,172.05,172.0,0.14216157]
[1748496593897,18.2,172.03,172.0,0.14216157]
[1748496594068,18.2,172.03,172.02,31.02267932]
[1748496595609,18.2,172.03,172.02,36.83595684]
[1748496595900,18.2,172.03,172.02,36.97811841]
[1748496597084,18.2,172.03,172.02,37.12027998]
[1748496597403,18.2,172.08,172.03,18.933972]
[1748496597588,18.2,172.07,172.06,31.02267932]
[1748496598304,18.2,172.07,172.06,18.64964886]
[1748496600300,18.2,172.07,172.02,18.64964886]
[1748496600301,30.57303046,172.07,172.02,18.64964886]
[1748496600512,12.37303046,172.05,172.02,18.64964886]
[1748496600804,12.37303046,172.03,171.98,12.37303046]
[1748496601003,30.57303046,172.02,171.99,18.64964886]
[1748496601575,30.57303046,172.02,171.97,31.02267932]
[1748496604123,18.2,172.02,171.99,18.64964886]
[1748496604477,18.2,172.02,171.97,18.79181043]
[1748496604679,18.2,172.02,171.99,18.64964886]
[1748496606319,18.2,172.02,171.99,31.02267932]
[1748496607380,18.2,172.02,172.01,12.37303046]
[1748496608117,18.2,172.02,172.0,31.02267932]
[1748496610511,18.2,172.02,171.98,18.79181043]
[1748496610810,18.2,172.02,171.98,31.16484089]
[1748496613407,18.2,172.02,171.93,10.5]
[1748496613589,18.2,172.01,171.98,18.64964886]
[1748496613788,18.2,172.0,171.98,18.64964886]
[1748496614012,18.2,172.0,171.97,18.64964886]
[1748496615512,18.2,171.99,171.97,12.37303046]
[1748496618106,18.2,171.99,171.97,18.64964886]
[1748496618323,18.2,171.99,171.95,12.37303046]
[1748496618531,18.2,171.98,171.95,12.37303046]
[1748496618891,18.2,171.98,171.94,31.16484089]
[1748496619226,18.2,171.97,171.94,18.64964886]
[1748496619392,30.57303046,171.97,171.9,18.64964886]
[1748496619594,18.2,171.96,171.93,18.64964886]
[1748496619816,18.2,171.95,171.93,18.64964886]
[1748496620119,18.2,171.95,171.92,12.37303046]
[1748496620301,18.2,171.95,171.91,12.37303046]
[1748496620502,18.2,171.95,171.92,12.37303046]
[1748496621101,18.2,171.95,171.94,31.02267932]
[1748496621429,18.2,171.95,171.94,36.9808232]
[1748496621796,18.2,171.95,171.94,31.02267932]
[1748496623023,18.2,171.95,171.94,18.64964886]
[1748496623908,18.2,171.95,171.92,12.37303046]
[1748496628629,18.2,171.94,171.92,31.02267932]
[1748496632108,18.2,171.94,171.92,18.64964886]
[1748496633325,18.2,171.94,171.92,12.37303046]
[1748496634113,18.2,171.94,171.92,31.02267932]
[1748496634514,18.2,171.93,171.92,31.02267932]
[1748496637837,18.2,171.93,171.92,18.64964886]
[1748496638028,18.2,171.93,171.92,31.02267932]
[1748496638232,18.2,171.93,171.92,18.64964886]
[1748496638813,18.2,171.93,171.92,31.02267932]
[1748496640513,12.37303046,171.97,171.92,31.02267932]
[1748496641048,18.47243046,171.98,171.93,31.02267932]
[1748496641344,18.47243046,171.98,171.92,24.46619528]
[1748496641345,12.37303046,172.0,171.95,12.37303046]
[1748496641551,18.2,171.99,171.95,12.37303046]
[1748496641856,18.2,171.99,171.96,12.37303046]
[1748496642351,18.2,171.99,171.94,18.64964886]
[1748496642519,12.37303046,171.98,171.93,18.64964886]
[1748496642719,12.37303046,171.98,171.93,31.02267932]
[1748496642917,30.57303046,171.99,171.93,31.02267932]
[1748496643624,30.57303046,171.99,171.93,18.64964886]
[1748496643813,30.57303046,171.99,171.93,31.02267932]
[1748496644014,12.37303046,171.98,171.9,5.81703175]
[1748496644323,18.2,171.97,171.92,12.37303046]
[1748496645650,18.2,171.97,171.93,12.37303046]
[1748496646916,18.2,171.97,171.94,12.37303046]
[1748496647115,18.2,171.96,171.94,12.37303046]
[1748496651413,18.2,171.96,171.88,14.98618915]
[1748496651615,18.2,171.95,171.93,12.37303046]
[1748496651826,18.2,171.94,171.93,12.37303046]
[1748496654972,18.2,171.94,171.93,18.18935105]
[1748496657374,18.2,171.98,171.96,18.64964886]
[1748496657647,18.2,171.98,171.97,31.30700246]
[1748496658641,147.3,172.06,171.97,31.30700246]
[1748496658830,18.2,172.05,172.01,18.64964886]
[1748496659032,4.8,172.04,172.02,5.81327752]
[1748496660140,4.8,172.04,172.03,12.37303046]
[1748496660468,4.8,172.04,172.03,31.02267932]
[1748496661137,4.8,172.04,172.03,36.83561892]
[1748496661545,4.8,172.04,172.03,37.11994206]
[1748496663454,4.8,172.09,172.03,37.11994206]
[1748496663655,4.8,172.08,172.07,12.37303046]
[1748496663848,147.3,172.1,172.07,12.37303046]
[1748496666149,147.3,172.1,172.08,12.37303046]
[1748496666660,147.3,172.1,172.07,12.37303046]
[1748496669850,147.3,172.1,172.08,12.37303046]
[1748496670051,4.8,172.09,172.08,12.37303046]
[1748496670248,4.8,172.09,172.08,31.02267932]
[1748496670946,4.8,172.09,172.08,31.30700246]
[1748496671371,4.8,172.09,172.08,37.11825304]
[1748496672973,4.8,172.09,172.08,31.02267932]
[1748496673279,4.8,172.09,172.08,12.37303046]
[1748496674453,4.8,172.09,172.08,31.02267932]
[1748496674652,4.8,172.09,172.08,37.11825304]
[1748496674852,4.8,172.09,172.08,63.11825304]
[1748496675050,4.8,172.14,172.09,18.933972]
[1748496675356,4.8,172.16,172.13,12.37303046]
[1748496675580,4.8,172.15,172.13,12.37303046]
[1748496676450,4.8,172.15,172.09,0.28432314]
[1748496676687,4.8,172.14,172.12,12.37303046]
[1748496680177,4.8,172.13,172.12,12.37303046]
[1748496681485,4.8,172.13,172.12,31.02267932]
[1748496682807,4.8,172.13,172.12,37.11690252]
[1748496683473,4.8,172.13,172.1,18.64964886]
[1748496683698,4.8,172.13,172.12,12.37303046]
[1748496683899,4.8,172.13,172.1,18.64964886]
[1748496683900,4.8,172.13,172.11,12.37303046]
[1748496687984,4.8,172.12,172.11,12.37303046]
[1748496688389,4.8,172.12,172.1,31.02267932]
[1748496689190,4.8,172.12,172.1,36.83319268]
[1748496689569,4.8,172.12,172.1,31.02267932]
[1748496689969,4.8,172.12,172.11,12.37303046]
[1748496693663,12.37303046,172.16,172.11,12.37303046]
[1748496694503,147.3,172.19,172.1,18.64964886]
[1748496694667,4.8,172.11,172.1,31.02267932]
[1748496694868,147.3,172.18,172.1,31.02267932]
[1748496695074,12.37303046,172.15,172.1,31.02267932]
[1748496695861,147.3,172.17,172.1,31.02267932]
[1748496696064,12.37303046,172.16,172.11,12.37303046]
[1748496696282,12.37303046,172.16,172.1,31.02267932]
[1748496698396,12.37303046,172.16,172.11,12.37303046]
[1748496698778,12.37303046,172.16,172.1,18.64964886]
[1748496699097,12.37303046,172.16,172.11,12.37303046]
[1748496699696,4.8,172.15,172.11,12.37303046]
[1748496702187,4.8,172.15,172.14,12.37303046]
[1748496702510,147.3,172.17,172.14,12.37303046]
[1748496703483,147.3,172.17,172.15,12.37303046]
[1748496703817,147.3,172.17,172.16,12.37303046]
[1748496705395,147.3,172.17,172.15,12.37303046]
[1748496705585,4.8,172.16,172.15,12.37303046]
[1748496706795,4.8,172.16,172.12,7.41212514]
[1748496706981,4.8,172.16,172.15,12.37303046]
[1748496711618,12.37303046,172.2,172.15,12.37303046]
[1748496712105,147.3,172.21,172.17,12.37303046]
[1748496712412,147.3,172.21,172.18,12.37303046]
[1748496715715,147.3,172.21,172.17,12.37303046]
[1748496717538,4.8,172.2,172.17,12.37303046]
[1748496717927,4.8,172.2,172.18,12.37303046]
[1748496718431,4.8,172.2,172.16,24.4579813]
[1748496718432,4.8,172.2,172.19,12.37303046]
[1748496718600,147.3,172.21,172.19,12.37303046]
[1748496722937,147.3,172.26,172.2,31.02267932]
[1748496723231,147.3,172.26,172.23,12.37303046]
[1748496723436,147.3,172.26,172.22,12.37303046]
[1748496723798,12.37303046,172.24,172.19,38.37303046]
[1748496725122,12.37303046,172.24,172.19,12.37303046]
[1748496725439,12.37303046,172.23,172.18,12.37303046]
[1748496726135,12.37303046,172.2,172.15,12.37303046]
[1748496726902,4.8,172.19,172.15,12.37303046]
[1748496727511,4.8,172.19,172.16,12.37303046]
[1748496727836,4.8,172.19,172.17,12.37303046]
[1748496730524,4.8,172.19,172.15,12.37303046]
[1748496730732,17.17303046,172.19,172.12,44.64964886]
[1748496730914,12.37303046,172.18,172.13,12.37303046]
[1748496731238,17.17303046,172.19,172.14,12.37303046]
[1748496732044,4.8,172.19,172.15,12.37303046]
[1748496732347,4.8,172.18,172.13,18.64964886]
[1748496732544,4.8,172.18,172.17,12.37303046]
[1748496733622,4.8,172.18,172.17,18.18124327]
[1748496736545,4.8,172.22,172.18,18.64964886]
[1748496737015,4.8,172.22,172.2,12.37303046]
[1748496738514,4.8,172.22,172.21,12.37303046]
[1748496739244,4.8,172.22,172.2,12.37303046]
[1748496739618,4.8,172.22,172.19,12.37303046]
[1748496740641,4.8,172.25,172.21,12.37303046]
[1748496740878,4.8,172.25,172.23,12.37303046]
[1748496741346,4.8,172.25,172.24,12.37303046]
[1748496742332,4.8,172.25,172.24,18.17888275]
[1748496743737,4.8,172.25,172.21,26.0]
[1748496743928,4.8,172.25,172.21,38.37303046]
[1748496744250,4.8,172.25,172.22,12.37303046]
[1748496745174,4.8,172.25,172.24,12.37303046]
[1748496745469,4.8,172.25,172.23,12.37303046]
[1748496745970,4.8,172.25,172.22,12.37303046]
[1748496746927,4.8,172.24,172.22,12.37303046]
[1748496747664,4.8,172.24,172.23,12.37303046]
[1748496751277,4.8,172.24,172.19,1.5577]
[1748496751278,4.8,172.23,172.14,7.6831]
[1748496751445,12.37303046,172.21,172.17,18.64964886]
[1748496751764,17.17303046,172.22,172.17,31.02267932]
[1748496751965,4.8,172.21,172.17,18.64964886]
[1748496752156,4.8,172.2,172.17,12.37303046]
[1748496752552,4.8,172.19,172.16,18.64964886]
[1748496752752,4.8,172.19,172.16,31.02267932]
[1748496754165,4.8,172.19,172.15,26.0]
[1748496754473,12.37303046,172.2,172.13,26.0]
[1748496754474,12.37303046,172.17,172.13,26.0]
[1748496754646,17.17303046,172.18,172.13,38.37303046]
[1748496755847,7.7884,172.2,172.11,35.96]
[1748496755848,17.17303046,172.17,172.11,35.96]
[1748496756053,17.17303046,172.17,172.04,1.5926]
[1748496756054,12.37303046,172.12,172.04,1.5926]
[1748496756250,12.37303046,172.08,172.04,1.5926]
[1748496756459,12.37303046,172.08,172.03,12.37303046]
[1748496756643,12.37303046,172.07,172.02,12.37303046]
[1748496756970,12.37303046,172.06,172.01,18.64964886]
[1748496757143,12.37303046,172.05,172.01,18.64964886]
[1748496757343,12.37303046,172.05,172.0,38.37303046]
[1748496757570,12.37303046,172.05,172.01,12.37303046]
[1748496757769,12.37303046,172.05,172.04,100.0]
[1748496758171,17.17303046,172.1,172.04,100.0]
[1748496758172,12.37303046,172.06,172.04,100.0]
[1748496759264,12.37303046,172.05,172.04,100.0]
[1748496759443,12.37303046,172.06,172.04,100.0]
[1748496760070,4.8,172.1,172.04,100.0]
[1748496760268,12.37303046,172.07,172.04,100.0]
[1748496761163,190.8191,172.11,172.04,100.0]
[1748496761358,12.37303046,172.08,172.04,100.0]
[1748496761867,12.37303046,172.08,172.04,105.81256993]
[1748496762970,4.8,172.07,172.04,105.81256993]
[1748496763358,17.17303046,172.07,172.04,100.0]
[1748496764378,17.17303046,172.07,172.04,105.81258386]
[1748496764575,4.8,172.07,172.04,105.81258386]
[1748496764980,4.8,172.07,172.05,12.37303046]
[1748496765860,4.8,172.07,172.06,18.18495653]
[1748496766053,4.8,172.07,172.06,36.83460539]
[1748496768368,4.8,172.07,172.06,18.18495653]
[1748496769657,4.8,172.1,172.07,18.64964886]
[1748496769866,4.8,172.1,172.09,31.02267932]
[1748496770071,4.8,172.15,172.09,69.68003292]
[1748496770275,4.8,172.14,172.11,18.64964886]
[1748496770470,4.8,172.14,172.13,31.02267932]
[1748496770691,10.06,172.19,172.14,18.64964886]
[1748496770986,10.06,172.19,172.15,12.37303046]
[1748496771983,22.43303046,172.19,172.15,12.37303046]
[1748496772367,10.06,172.19,172.15,18.18183476]
[1748496772565,10.06,172.19,172.15,5.8088043]
[1748496772782,22.43303046,172.19,172.14,5.80915388]
[1748496772984,22.43303046,172.19,172.15,12.37303046]
[1748496773963,10.06,172.19,172.15,18.1818008]
[1748496774270,10.06,172.19,172.16,12.37303046]
[1748496774567,10.06,172.19,172.15,18.1818008]
[1748496775285,10.06,172.19,172.15,12.37303046]
[1748496776176,22.43303046,172.19,172.14,12.37303046]
[1748496776386,10.06,172.19,172.14,12.37303046]
[1748496776591,4.8,172.18,172.14,12.37303046]
[1748496777091,17.17303046,172.18,172.13,12.37303046]
[1748496777271,17.17303046,172.18,172.14,12.37303046]
[1748496777272,4.8,172.18,172.14,12.37303046]
[1748496780904,17.17303046,172.18,172.12,18.64964886]
[1748496781101,17.17303046,172.18,172.13,12.37303046]